bitfinex-derivatives/quotes_SOLF0:USTF0_20251230
["timestamp","ask_amount","ask_price","bid_price","bid_amount"]
[1767080461577,3.15221285,124.38,124.28,3.3]
[1767080461777,210.99741285,124.38,124.28,3.3]
[1767080462183,7.2461,124.37,124.28,3.3]
[1767080462375,0.05461504,124.34,124.31,0.06124605]
[1767080464287,0.05461504,124.34,124.26,10.5518]
[1767080464479,3.15221285,124.34,124.26,10.5518]
[1767080465179,95.14,124.35,124.26,10.5518]
[1767080465387,0.05954244,124.32,124.29,0.05443421]
[1767080465885,0.05954244,124.32,124.29,3.35443421]
[1767080471090,7.246,124.37,124.29,3.35443421]
[1767080471291,7.246,124.37,124.29,3.3]
[1767080471992,0.05420268,124.34,124.32,0.05649373]
[1767080474684,0.05420268,124.34,124.29,3.3]
[1767080475592,0.05420268,124.34,124.29,10.5501]
[1767080475793,0.05420268,124.34,124.3,3.35092266]
[1767080480184,0.05420268,124.34,124.3,0.05092266]
[1767080480390,0.05420268,124.34,124.3,0.00092266]
[1767080481602,7.30180268,124.34,124.3,0.00092266]
[1767080482898,7.2482,124.33,124.3,0.00092266]
[1767080483105,115.90481285,124.33,124.24,3.35]
[1767080483306,95.1,124.32,124.24,3.35]
[1767080483506,95.1,124.32,124.22,3.35]
[1767080483507,7.2505,124.29,124.22,3.35]
[1767080484098,0.05594464,124.27,124.24,0.04379128]
[1767080516343,115.88181285,124.35,124.24,3.51379128]
[1767080516636,7.2484,124.33,124.24,3.47]
[1767080516841,7.2484,124.33,124.26,3.47]
[1767080517238,0.05872145,124.31,124.28,0.06189326]
[1767080535357,0.05872145,124.31,124.28,0.00189326]
[1767080535959,2.07492787,124.31,124.28,0.00189326]
[1767080536865,0.05872145,124.31,124.28,0.00189326]
[1767080542069,2.07492787,124.31,124.28,0.00189326]
[1767080546970,2.01620642,124.35,124.28,3.42189326]
[1767080547172,97.13620642,124.35,124.28,3.42189326]
[1767080547474,2.01620642,124.35,124.28,3.42189326]
[1767080547676,2.01620642,124.35,124.29,3.42]
[1767080548068,0.06165415,124.33,124.31,0.05843372]
[1767080580298,0.06165415,124.33,124.31,3.38843372]
[1767080580507,0.00165415,124.33,124.31,3.38843372]
[1767080593619,3.14923292,124.4,124.32,3.33]
[1767080593823,115.83693292,124.4,124.32,3.33]
[1767080594311,7.246,124.37,124.3,3.33]
[1767080594503,0.0565081,124.35,124.32,0.05962388]
[1767080598724,0.0565081,124.35,124.32,3.35962388]
[1767080601309,0.0565081,124.35,124.3,3.3]
[1767080601510,3.14923292,124.34,124.28,3.3]
[1767080602314,0.05412665,124.32,124.3,0.06015979]
[1767080602710,0.05412665,124.32,124.28,3.3]
[1767080603714,0.05412665,124.32,124.29,0.04032784]
[1767080612830,0.05412665,124.32,124.25,10.77436297]
[1767080612831,10.45235957,124.32,124.25,10.77436297]
[1767080613019,115.96395957,124.32,124.24,10.77436297]
[1767080613223,3.14923292,124.3,124.24,10.77436297]
[1767080613419,98.24923292,124.3,124.24,10.77436297]
[1767080613930,0.05087218,124.28,124.24,10.77436297]
[1767080614131,0.05087218,124.28,124.24,3.3]
[1767080614332,0.05087218,124.28,124.22,10.77436297]
[1767080614735,3.2001051,124.28,124.22,10.77436297]
[1767080615732,10.4512051,124.28,124.22,3.3]
[1767080616532,105.5712051,124.28,124.22,3.3]
[1767080616927,105.5712051,124.28,124.19,14.73026297]
[1767080616928,211.1168051,124.28,124.2,3.3]
[1767080617127,0.05839229,124.25,124.2,3.3]
[1767080619032,3.20923292,124.29,124.2,3.3]
[1767080619337,98.32923292,124.29,124.2,3.3]
[1767080619538,3.20923292,124.29,124.2,3.3]
[1767080619737,0.06,124.29,124.2,3.3]
[1767080620139,0.05378807,124.26,124.23,3.3583923]
[1767080623942,0.00378807,124.26,124.23,3.3583923]
[1767080626635,0.00378807,124.26,124.24,3.48]
[1767080627840,7.3684,124.33,124.25,3.48]
[1767080628336,0.12,124.33,124.25,3.48]
[1767080629044,0.05701523,124.3,124.28,0.05818332]
[1767080629447,0.12,124.33,124.28,3.53818332]
[1767080630639,0.06162394,124.32,124.28,3.53818332]
[1767080634851,0.23162394,124.32,124.28,0.05818332]
[1767080636142,0.17,124.31,124.28,0.05818332]
[1767080636347,0.17,124.31,124.26,3.48]
[1767080637346,0.17,124.31,124.27,0.06184803]
[1767080640442,2.01721724,124.3,124.27,0.06184803]
[1767080642951,2.18721724,124.31,124.27,0.06184803]
[1767080644556,0.17,124.31,124.27,0.06184803]
[1767080650053,0.17,124.31,124.21,207.9933]
[1767080650054,141.14,124.3,124.11,3.43]
[1767080650259,2.01721724,124.19,124.12,3.43]
[1767080650553,112.8335,124.24,124.15,3.43]
[1767080650759,97.15721724,124.23,124.15,3.43]
[1767080651150,0.05468267,124.2,124.18,0.04916425]
[1767080652752,102.394,124.23,124.18,0.04916425]
[1767080653858,0.05945836,124.22,124.18,0.04916425]
[1767080655057,2.0766756,124.22,124.18,0.04916425]
[1767080660760,2.0766756,124.22,124.16,3.43]
[1767080660761,2.01721724,124.2,124.16,3.43]
[1767080661270,2.01721724,124.21,124.16,3.43]
[1767080661860,0.0571098,124.2,124.17,0.05452914]
[1767080667773,2.01721724,124.19,124.14,3.33]
[1767080668771,0.06204051,124.18,124.14,3.33]
[1767080670368,2.01721724,124.17,124.14,3.33]
[1767080670964,0.06204051,124.18,124.14,3.33]
[1767080674566,2.01721724,124.17,124.09,104.47881724]
[1767080675677,0.06100161,124.14,124.12,0.05873572]
[1767080675879,0.00100161,124.14,124.12,0.05873572]
[1767080676576,0.00100161,124.14,124.12,3.38873572]
[1767080686282,9.27231724,124.21,124.13,3.33]
[1767080687287,0.05998446,124.18,124.16,0.05415642]
[1767080689286,9.27231724,124.21,124.16,3.38415642]
[1767080690191,0.06077056,124.2,124.16,3.38415642]
[1767080690392,0.06077056,124.2,124.16,0.05415642]
[1767080696507,2.01721724,124.19,124.16,0.05415642]
[1767080700813,0.06077056,124.2,124.16,0.05415642]
[1767080701307,0.06077056,124.2,124.16,3.48415642]
[1767080718131,7.31647056,124.2,124.16,3.48415642]
[1767080737449,0.06077056,124.2,124.16,3.48415642]
[1767080749571,7.31657056,124.2,124.16,3.48415642]
[1767080758473,0.06077056,124.2,124.16,3.48415642]
[1767080764680,9.33680089,124.2,124.16,3.48415642]
[1767080767581,7.2564,124.19,124.16,0.05415642]
[1767080768085,2.02023033,124.18,124.14,3.48]
[1767080769179,0.05385754,124.17,124.15,0.06059514]
[1767080769776,0.05385754,124.17,124.14,3.48]
[1767080770783,0.05385754,124.17,124.14,3.54146474]
[1767080770983,0.05385754,124.17,124.14,6.474e-05]
[1767080770984,7.31135754,124.17,124.14,6.474e-05]
[1767080772785,9.27853033,124.16,124.08,104.50243033]
[1767080772986,9.27853033,124.16,124.09,3.48]
[1767080773286,104.49853033,124.16,124.09,3.48]
[1767080773984,0.05296893,124.14,124.09,3.48]
[1767080787494,0.00296893,124.14,124.09,3.48]
[1767080788594,0.00296893,124.14,124.11,3.32]
[1767080804808,0.00296893,124.14,124.13,3.32]
[1767080808003,0.00296893,124.14,124.11,3.21]
[1767080857664,0.00296893,124.14,124.1,3.52370733]
[1767080866473,0.00296893,124.14,124.1,0.05370733]
[1767080867577,7.26236893,124.14,124.1,0.05370733]
[1767080868473,7.26,124.13,124.1,0.00370733]
[1767080868871,116.08888698,124.13,124.06,3.19]
[1767080869272,7.2611,124.11,124.06,3.19]
[1767080869978,0.06138575,124.1,124.06,3.19]
[1767080921733,0.00138575,124.1,124.06,3.19]
[1767080922235,0.00138575,124.1,124.08,3.25]
[1767080922736,0.00138575,124.1,124.08,3.30902172]
[1767080923028,9.2822909,124.15,124.08,3.30902172]
[1767080924235,0.05244261,124.13,124.08,3.30902172]
[1767080942352,7.31224261,124.13,124.08,3.30902172]
[1767080942853,2.0234909,124.12,124.08,3.30902172]
[1767080948458,7.31224261,124.13,124.08,3.30902172]
[1767080949156,7.31224261,124.13,124.08,0.05902172]
[1767080950052,7.2604,124.12,124.08,0.05902172]
[1767080951360,117.63031098,124.12,124.03,95.26]
[1767080951550,1.53,124.11,124.03,95.26]
[1767080952454,0.05393401,124.08,124.03,95.26]
[1767080953157,0.00393401,124.08,124.03,95.26]
[1767080953461,0.00393401,124.08,124.04,3.36]
[1767080954156,0.00393401,124.08,124.05,0.05236403]
[1767080954357,0.00393401,124.08,124.06,3.36]
[1767081002696,1.58,124.14,124.08,3.52]
[1767081003606,0.05327319,124.12,124.1,0.05629804]
[1767081031328,0.05327319,124.12,124.07,3.43]
[1767081044933,0.00327319,124.12,124.07,3.43]
[1767081045137,0.00327319,124.12,124.09,3.43]
[1767081045725,0.00327319,124.12,124.09,3.48]
[1767081060442,7.26367319,124.12,124.09,3.48]
[1767081060650,10.91632987,124.12,124.07,3.46]
[1767081061042,7.261,124.11,124.07,3.46]
[1767081065651,8.891,124.11,124.07,3.46]
[1767081065849,8.891,124.11,124.05,3.46]
[1767081066152,0.05532108,124.09,124.05,3.46]
[1767081067248,8.8899,124.13,124.06,3.46]
[1767081068242,0.06178335,124.11,124.08,3.51532108]
[1767081088269,0.06178335,124.11,124.08,0.05532108]
[1767081088471,1.75178335,124.11,124.06,3.52]
[1767081088665,1.69,124.1,124.04,3.52]
[1767081088867,95.28,124.09,124.04,3.52]
[1767081089059,1.69,124.09,124.04,3.52]
[1767081089261,96.97,124.09,124.04,3.52]
[1767081089568,0.05478502,124.08,124.04,3.52]
[1767081090567,7.31758502,124.08,124.04,3.52]
[1767081091170,0.05478502,124.08,124.04,3.52]
[1767081101478,1.74478502,124.08,124.01,3.52]
[1767081101775,0.05847354,124.06,124.01,3.52]
[1767081102977,97.04847354,124.06,124.01,3.52]
[1767081103177,104.31257354,124.06,123.97,7.2687]
[1767081103377,0.0561489,124.03,123.97,7.2687]
[1767081104574,104.2541,124.06,123.97,7.2687]
[1767081105181,104.2541,124.06,123.98,3.52]
[1767081105681,0.06194055,124.03,124.01,0.05504182]
[1767081106268,0.00194055,124.03,124.01,3.36504182]
[1767081120398,0.00194055,124.03,124.01,0.05504182]
[1767081122286,0.00194055,124.03,124.01,3.29504182]
[1767081146315,7.2636,124.07,124.02,3.21]
[1767081147217,0.0526887,124.06,124.02,3.21]
[1767081147514,0.0026887,124.06,124.02,3.21]
[1767081200558,7.2665887,124.06,124.02,3.21]
[1767081202565,10.7665887,124.06,124.02,3.21]
[1767081222291,3.5026887,124.06,124.02,3.21]
[1767081224897,0.0026887,124.06,124.02,3.21]
[1767081226591,0.0026887,124.06,124.03,3.24]
[1767081230099,0.0026887,124.06,124.01,3.29504182]
[1767081246307,0.0026887,124.06,124.02,3.29]
[1767081247704,0.0026887,124.06,124.03,3.29]
[1767081264316,0.0026887,124.06,124.04,3.28]
[1767081264512,0.0026887,124.06,124.04,3.33876372]
[1767081279942,0.0026887,124.06,124.04,0.05876372]
[1767081315362,0.0026887,124.06,124.01,12.05691274]
[1767081315569,3.3026887,124.06,124.01,10.03304069]
[1767081315874,3.3026887,124.06,124.0,3.24]
[1767081316478,3.3026887,124.06,124.02,0.05739766]
[1767081373416,3.3026887,124.06,124.0,7.2672]
[1767081374418,3.3026887,124.06,124.02,0.05192807]
[1767081375921,6.41648691,124.08,124.02,3.56192807]
[1767081376130,7.2612,124.11,124.02,6.72594573]
[1767081376426,6.03857921,124.1,124.02,6.67401766]
[1767081376627,6.03857921,124.1,124.03,2.02360175]
[1767081376926,0.06190812,124.08,124.05,0.05461677]
[1767081377927,2.02190812,124.08,124.05,0.05461677]
[1767081449289,2.02190812,124.08,124.05,0.00461677]
[1767081499834,2.02190812,124.08,124.01,13.52304069]
[1767081500131,1.91,124.06,124.01,10.03304069]
[1767081500426,1.91,124.06,124.0,20.78994069]
[1767081501122,0.0521035,124.04,124.0,20.78994069]
[1767081501716,0.0521035,124.04,124.0,3.49]
[1767081503726,1.9621035,124.04,124.0,3.49]
[1767081504030,1.9621035,124.04,123.99,2.02413141]
[1767081505340,1.9621035,124.04,123.99,5.51413141]
[1767081512442,1.9621035,124.04,123.99,12.78183141]
[1767081520245,0.0521035,124.04,124.0,10.7572]
[1767081541270,0.0021035,124.04,124.01,3.22]
[1767081542372,0.0021035,124.04,124.01,3.27]
[1767081544468,0.0021035,124.04,124.01,10.5366]
[1767081553994,0.0021035,124.04,124.02,3.22]
[1767081559897,0.0021035,124.04,124.01,0.05]
[1767081560099,0.0021035,124.04,124.01,3.37]
[1767081579816,0.0021035,124.04,124.01,0.05]
[1767081588925,0.0021035,124.04,124.01,3.44]
[1767081592223,0.0021035,124.04,124.01,0.05]
[1767081595622,0.0021035,124.04,124.01,3.44]
[1767081601528,0.0021035,124.04,124.01,10.7066]
[1767081601733,0.0021035,124.04,124.02,3.47]
[1767081604138,0.0021035,124.04,124.01,0.05]
[1767081605941,0.0021035,124.04,123.95,113.0924]
[1767081606135,1.96,124.05,123.95,113.0924]
[1767081606941,1.96,124.05,123.99,0.05700136]
[1767081608042,0.05628614,124.03,123.99,3.52700136]
[1767081617258,10.473,124.08,123.99,3.52700136]
[1767081617446,9.1783131,124.07,123.99,3.47]
[1767081617959,3.21,124.07,124.0,3.22]
[1767081618258,0.05751381,124.05,124.02,3.2714859]
[1767081619158,3.21,124.07,124.02,3.2714859]
[1767081620060,0.05971523,124.06,124.02,3.2714859]
[1767081625564,3.26971523,124.06,124.02,0.0514859]
[1767081625764,3.26971523,124.06,124.0,3.22]
[1767081626560,3.21,124.05,124.0,3.22]
[1767081626862,3.21,124.05,124.01,0.05186399]
[1767081629466,3.21,124.05,124.01,3.27186399]
[1767081631465,7.32381523,124.06,124.01,3.27186399]
[1767081633360,0.05971523,124.06,124.01,3.27186399]
[1767081644377,3.26971523,124.06,124.01,3.27186399]
[1767081648686,3.47,124.04,124.01,0.05186399]
[1767081648886,3.47,124.04,123.99,3.45]
[1767081649791,0.05116421,124.03,124.0,0.06124765]
[1767081652193,0.05116421,124.03,124.0,3.51124765]
[1767081653384,0.00116421,124.03,124.0,3.51124765]
[1767081660292,10.5436,124.07,124.0,3.51124765]
[1767081660793,3.28,124.07,124.0,3.51124765]
[1767081661399,0.00202839,124.05,124.0,3.51124765]
[1767081661601,0.00202839,124.05,124.0,3.45]
[1767081662294,0.00202839,124.05,124.01,0.0602681]
[1767081662591,0.00202839,124.05,124.02,3.51]
[1767081663183,9.47518972,124.1,124.02,3.51]
[1767081664197,3.28,124.11,124.02,3.51]
[1767081664393,3.28,124.11,124.06,3.51]
[1767081664597,9.41292019,124.11,124.06,3.51]
[1767081665500,3.33387636,124.1,124.05,3.56376917]
[1767081667398,0.05387636,124.1,124.05,3.56376917]
[1767081672803,0.00387636,124.1,124.05,3.56376917]
[1767081674804,7.2594,124.14,124.05,3.56376917]
[1767081675006,7.2594,124.14,124.05,3.51]
[1767081675707,7.2594,124.14,124.09,3.51]
[1767081676801,0.05443677,124.13,124.09,3.51]
[1767081677205,3.32,124.18,124.09,3.51]
[1767081678312,0.00138713,124.15,124.13,3.42]
[1767081678714,3.32,124.18,124.13,3.42]
[1767081679812,0.05900161,124.17,124.13,3.42]
[1767081687310,3.37900161,124.17,124.12,0.05501628]
[1767081687506,3.32,124.16,124.08,93.82]
[1767081688113,10.5787,124.15,124.08,93.82]
[1767081688511,0.05603526,124.13,124.1,0.05320231]
[1767081689611,0.05603526,124.13,124.1,3.47320231]
[1767081703223,101.1383,124.16,124.1,3.47320231]
[1767081703431,7.2583,124.16,124.1,3.47320231]
[1767081704235,0.05736014,124.14,124.1,3.47320231]
[1767081707939,3.32,124.17,124.1,3.47320231]
[1767081708236,101.1771,124.18,124.1,3.47320231]
[1767081708536,101.1771,124.18,124.1,3.42]
[1767081708833,3.22,124.19,124.1,3.42]
[1767081709041,3.22,124.19,124.14,3.48]
[1767081709336,7.2546,124.22,124.14,3.48]
[1767081709638,112.7549,124.33,124.19,112.8675]
[1767081709843,3.22,124.34,124.21,112.8532]
[1767081710134,3.22,124.34,124.22,112.8432]
[1767081710334,3.22,124.33,124.26,0.0616568]
[1767081710732,3.22,124.33,124.23,93.94]
[1767081711237,3.22,124.33,124.22,24.24]
[1767081711428,0.05630278,124.29,124.27,0.05597671]
[1767081711836,0.05630278,124.29,124.22,93.94]
[1767081712837,3.22,124.27,124.15,180.22516354]
[1767081713239,3.22,124.27,124.16,93.94]
[1767081713941,3.27473954,124.23,124.11,120.2056]
[1767081714141,3.22,124.23,124.11,112.9451]
[1767081714449,3.22,124.23,124.12,93.94]
[1767081714939,3.22,124.23,124.1,112.9507]
[1767081714940,0.0560614,124.19,124.16,0.0522535]
[1767081715141,3.22,124.22,124.16,0.0522535]
[1767081715344,3.22,124.22,124.11,112.9448]
[1767081715547,3.22,124.22,124.13,93.94]
[1767081716347,0.0030353,124.19,124.16,0.05414404]
[1767081719851,3.22,124.24,124.16,0.05414404]
[1767081720051,3.22,124.27,124.16,206.8388]
[1767081720247,3.22,124.29,124.17,112.8896]
[1767081720752,3.22,124.29,124.18,93.96]
[1767081720943,0.06004019,124.25,124.22,0.05690994]
[1767081721141,4.019e-05,124.25,124.22,0.05690994]
[1767081721549,3.48,124.33,124.22,0.05690994]
[1767081721753,3.48,124.33,124.22,93.96]
[1767081722553,3.48,124.33,124.26,0.05636528]
[1767081723558,0.05135347,124.31,124.26,0.05636528]
[1767081724558,7.30065347,124.31,124.26,0.05636528]
[1767081725451,3.48,124.3,124.26,0.05636528]
[1767081726057,0.00135347,124.31,124.26,0.72636528]
[1767081726448,3.48,124.36,124.26,0.72636528]
[1767081726649,3.48,124.36,124.27,0.62]
[1767081727452,0.05316964,124.33,124.3,0.05478781]
[1767081728153,3.48,124.36,124.3,0.05478781]
[1767081730257,116.2012,124.36,124.3,0.05478781]
[1767081730456,3.48,124.35,124.3,0.00478781]
[1767081731361,0.05,124.34,124.3,0.62478781]
[1767081732160,93.94,124.38,124.3,0.62478781]
[1767081732360,3.48,124.39,124.3,0.62]
[1767081732659,3.48,124.41,124.3,0.62]
[1767081732859,3.48,124.41,124.31,0.57]
[1767081733253,3.48,124.41,124.35,0.05501412]
[1767081733657,3.48,124.4,124.35,0.05501412]
[1767081734861,116.1658,124.4,124.35,0.05501412]
[1767081735063,0.05501412,124.39,124.31,0.57]
[1767081735251,3.48,124.41,124.31,0.57]
[1767081735456,3.48,124.43,124.34,0.62]
[1767081735657,3.48,124.43,124.35,5.6305347]
[1767081735961,10.7231,124.42,124.38,0.06175906]
[1767081736166,0.05244982,124.4,124.39,3.47e-05]
[1767081737361,0.05244982,124.4,124.35,0.61]
[1767081738260,0.05244982,124.4,124.36,0.06107195]
[1767081738866,3.40244982,124.4,124.33,0.61]
[1767081739556,3.35,124.37,124.3,0.61]
[1767081739760,3.35,124.35,124.25,0.61]
[1767081740063,0.05808716,124.31,124.29,0.05646429]
[1767081740761,0.05808716,124.31,124.25,0.61]
[1767081741271,3.35,124.36,124.27,0.61]
[1767081741664,3.35,124.36,124.28,0.61]
[1767081741962,3.35,124.38,124.29,94.55]
[1767081742161,0.05331752,124.35,124.32,0.05259616]
[1767081745271,0.05331752,124.35,124.28,0.61]
[1767081745467,3.40331752,124.35,124.28,0.61]
[1767081746271,3.40331752,124.35,124.3,0.05091775]
[1767081748566,0.05331752,124.35,124.3,0.05091775]
[1767081749366,0.05331752,124.35,124.31,5.39045258]
[1767081749572,0.05331752,124.35,124.32,5.39045258]
[1767081749772,0.05331752,124.35,124.33,5.39045258]
[1767081750076,0.05331752,124.35,124.34,0.00045258]
[1767081750666,7.2448,124.39,124.34,0.00045258]
[1767081750870,7.2448,124.39,124.33,3.32952488]
[1767081751064,112.6545,124.44,124.33,3.32952488]
[1767081751268,3.35,124.42,124.33,3.27]
[1767081751470,3.35,124.42,124.34,3.27]
[1767081751775,0.05700245,124.39,124.37,0.05356493]
[1767081752375,3.35,124.42,124.37,0.05356493]
[1767081752572,93.96,124.44,124.37,0.05356493]
[1767081752771,3.35,124.44,124.37,3.32356493]
[1767081752979,10.5919,124.44,124.37,3.32356493]
[1767081753481,0.05309946,124.42,124.37,0.05356493]
[1767081754175,0.05309946,124.42,124.37,3.32356493]
[1767081755377,0.00309946,124.42,124.37,3.32356493]
[1767081755979,0.00309946,124.42,124.37,0.05356493]
[1767081756387,3.35309946,124.42,124.37,0.05356493]
[1767081763901,10.59619946,124.42,124.37,0.00356493]
[1767081764108,3.35,124.41,124.37,0.00356493]
[1767081766409,0.00309946,124.42,124.37,3.18356493]
[1767081769007,0.00309946,124.42,124.37,0.00356493]
[1767081773300,0.00309946,124.42,124.37,3.18356493]
[1767081775095,0.00309946,124.42,124.38,3.18]
[1767081778805,15.22362784,124.46,124.38,3.18]
[1767081779505,3.46,124.45,124.39,7.2441]
[1767081779708,3.46,124.45,124.39,10.6441]
[1767081779910,0.054214,124.43,124.41,0.05743938]
[1767081780804,1e-08,124.46,124.41,3.45743938]
[1767081781003,3.46,124.52,124.42,3.4]
[1767081781202,3.46,124.52,124.44,3.4]
[1767081781709,0.0512889,124.49,124.47,0.05471642]
[1767081781914,3.46,124.52,124.47,0.05471642]
[1767081782206,112.5326,124.57,124.47,3.45471642]
[1767081782410,119.777,124.56,124.47,3.4]
[1767081783008,119.7891,124.55,124.5,0.05872146]
[1767081783212,94.0,124.54,124.45,97.4]
[1767081783409,206.5611,124.54,124.45,97.4]
[1767081783609,206.5537,124.55,124.46,3.4]
[1767081783814,112.5421,124.56,124.46,3.4]
[1767081784005,206.5421,124.56,124.46,3.4]
[1767081784201,3.51919165,124.52,124.45,94.0]
[1767081784511,3.51919165,124.52,124.45,97.4]
[1767081784710,3.46,124.51,124.43,3.4]
[1767081785214,0.00495786,124.48,124.46,3.45562442]
[1767081785416,3.46,124.53,124.46,3.45562442]
[1767081785713,3.46,124.55,124.46,3.45562442]
[1767081786013,3.46,124.55,124.46,3.4]
[1767081786207,0.05098399,124.52,124.49,3.45118327]
[1767081786414,3.46,124.55,124.49,3.45118327]
[1767081787119,3.46,124.55,124.49,0.05118327]
[1767081787411,0.02530984,124.53,124.49,0.05118327]
[1767081789308,3.48530984,124.53,124.49,0.05118327]
[1767081790516,3.46,124.56,124.49,3.45118327]
[1767081790713,3.46,124.62,124.51,3.4]
[1767081790918,3.46,124.61,124.53,3.4]
[1767081791616,3.46,124.61,124.56,0.05244516]
[1767081792221,3.46,124.64,124.56,3.45244516]
[1767081792414,18.47401374,124.67,124.59,0.0589812]
[1767081792611,15.01401374,124.67,124.62,0.05257047]
[1767081792811,130.91451374,124.67,124.58,97.38]
[1767081793008,18.47401374,124.67,124.58,97.38]
[1767081793211,3.46,124.65,124.59,5.80331041]
[1767081793414,3.46,124.65,124.6,5.80331041]
[1767081793614,3.46,124.65,124.61,1.041e-05]
[1767081793808,3.51093654,124.64,124.56,97.38]
[1767081794114,3.46,124.64,124.56,3.4]
[1767081794817,0.05205303,124.61,124.59,0.05211548]
[1767081795015,3.46,124.63,124.47,327.7227164]
[1767081795218,3.46,124.62,124.53,3.4]
[1767081795417,3.46,124.61,124.53,3.4]
[1767081795610,115.9838,124.58,124.5,3.4]
[1767081795819,3.46,124.57,124.5,3.4]
[1767081796124,0.00030046,124.55,124.52,0.0589316]
[1767081796312,0.00030046,124.55,124.5,3.4]
[1767081797112,3.39030046,124.55,124.45,3.4]
[1767081797319,3.39,124.54,124.45,3.4]
[1767081797518,115.9477,124.54,124.45,3.4]
[1767081798320,0.05620249,124.51,124.48,0.05321131]
[1767081800625,0.05620249,124.51,124.45,3.4]
[1767081801521,0.05620249,124.51,124.47,0.05981793]
[1767081802716,3.39,124.5,124.42,102.04007613]
[1767081802911,3.39,124.49,124.42,102.04007613]
[1767081803122,206.5649,124.51,124.43,3.4]
[1767081803322,3.39,124.51,124.43,3.4]
[1767081803714,3.39,124.54,124.46,0.05311495]
[1767081803915,3.39,124.56,124.45,3.29]
[1767081804117,115.9475,124.54,124.45,3.29]
[1767081804315,3.39,124.53,124.45,3.29]
[1767081804823,0.06161659,124.5,124.48,0.06005674]
[1767081805024,10.6267,124.53,124.48,0.06005674]
[1767081806025,0.0508892,124.52,124.48,0.06005674]
[1767081808515,0.0508892,124.52,124.48,3.35005674]
[1767081808720,3.39,124.57,124.48,3.35005674]
[1767081808922,3.39,124.57,124.48,3.29]
[1767081809631,0.05891603,124.54,124.51,0.05289835]
[1767081813633,10.6725,124.6,124.51,3.37289835]
[1767081813926,3.44,124.6,124.51,3.32]
[1767081814432,3.44,124.6,124.52,3.32]
[1767081814628,3.44,124.6,124.55,0.05384524]
[1767081817635,3.49,124.59,124.55,6.734e-05]
[1767081817934,3.49,124.58,124.5,3.36]
[1767081818845,0.0515151,124.55,124.53,0.0615892]
[1767081819623,0.0515151,124.55,124.53,0.0015892]
[1767081820031,3.5415151,124.55,124.53,0.0015892]
[1767081820226,3.5415151,124.55,124.47,97.36]
[1767081820433,3.49,124.54,124.45,3.36]
[1767081820832,3.49,124.53,124.45,3.36]
[1767081821332,0.05486607,124.5,124.48,0.00175467]
[1767081821727,3.54486607,124.5,124.42,3.36]
[1767081822033,3.49,124.49,124.39,94.02]
[1767081822234,3.49,124.48,124.39,97.38]
[1767081822640,0.05500011,124.45,124.42,0.05640924]
[1767081823443,97.51,124.51,124.42,3.41640924]
[1767081823636,97.51,124.51,124.42,3.36]
[1767081823943,3.49,124.5,124.42,3.36]
[1767081824445,0.05703844,124.47,124.45,0.00338868]
[1767081826643,0.05703844,124.47,124.4,7.2436]
[1767081827036,3.37703844,124.47,124.39,97.38]
[1767081827236,3.32,124.47,124.39,97.38]
[1767081827645,0.05712387,124.44,124.42,0.05849588]
[1767081827836,3.32,124.47,124.42,0.05849588]
[1767081828037,104.6186,124.5,124.42,0.05849588]
[1767081828237,104.6186,124.5,124.41,3.19]
[1767081828644,3.32,124.49,124.41,3.19]
[1767081828844,0.05948623,124.46,124.44,0.05975392]
[1767081830550,3.32,124.49,124.44,0.05975392]
[1767081831547,0.04967577,124.48,124.44,0.05975392]
[1767081833146,3.32,124.52,124.44,3.24975392]
[1767081833338,3.32,124.52,124.44,3.19]
[1767081834052,3.32,124.52,124.47,0.05741036]
[1767081835143,3.32,124.55,124.47,0.05741036]
[1767081835343,3.32,124.55,124.5,0.05961652]
[1767081835954,3.32,124.55,124.46,3.19]
[1767081836554,3.32,124.54,124.46,3.19]